Workbook

Sheet 目录
A1: 附表3
A2: 政府决算报表目录
A3: 表号 | B3: 表名
A4: *附表3-1 | B4: 2023年阳江镇一般公共收入决算表 | C4: 第一部分:一般公共决算
A5: *附表3-2 | B5: 2023年阳江镇一般公共支出决算表
A6: *附表3-3 | B6: 2023年阳江镇镇本级一般公共收入决算表
A7: *附表3-4 | B7: 2023年阳江镇镇本级一般公共支出决算表
A8: 附表3-5 | B8: 2023年阳江镇镇本级一般公共收支平衡情况表
A9: 附表3-6 | B9: 2023年阳江镇镇本级一般公共支出决算表（按经济科目分类）
A10: *附表3-7 | B10: 2023年阳江镇镇本级一般公共本级支出决算表
A11: *附表3-8 | B11: 2023年阳江镇镇本级一般公共基本支出决算表
A12: *附表3-9 | B12: 2023年阳江镇镇本级一般公共对下级的转移支付分项目决算表
A13: *附表3-10 | B13: 2023年阳江镇镇本级的转移支付分地区决算表
A14: 附表3-11 | B14: 2023年阳江镇镇本级财政专项资金清单及安排情况决算表
A15: 附表3-12 | B15: 2023年阳江镇一般公共预算“三公”经费等决算表
A16: *附表3-13 | B16: 2023年阳江镇政府性基金收入决算表 | C16: 第二部分:政府性基金决算
A17: *附表3-14 | B17: 2023年阳江镇政府性基金支出决算表
A18: *附表3-15 | B18: 2023年阳江镇政府性基金收入决算表
A19: *附表3-16 | B19: 2023年阳江镇政府性基金支出决算表
A20: 附表3-17 | B20: 2023年阳江镇政府性基金预算支出决算表（按经济科目分类）
A21: *附表3-18 | B21: 2023年阳江镇政府性基金本级支出决算表
A22: *附表3-19 | B22: 2023年阳江镇政府性基金对下级的转移支付分项目决算表
A23: *附表3-20 | B23: 2023年阳江镇政府性基金对下级的转移支付分地区决算表
A24: *附表3-21 | B24: 2023年阳江镇国有资本经营收入决算表 | C24: 第三部分:国有资本经营决算
A25: *附表3-22 | B25: 2023年阳江镇国有资本经营支出决算表
A26: *附表3-23 | B26: 2023年阳江镇国有资本经营收入决算表
A27: *附表3-24 | B27: 2023年阳江镇国有资本经营支出决算表
A28: 附表3-25 | B28: 2023年阳江镇国有资本经营转移支付决算表
A29: 附表3-26 | B29: 2023年阳江镇国有资本经营支出决算表（按经济科目分类）
A30: 附表3-27 | B30: 2023年阳江镇社会保险基金收入决算表 | C30: 第四部分:社会保险基金决算
A31: 附表3-28 | B31: 2023年阳江镇社会保险基金支出决算表
A32: 附表3-29 | B32: 2023年阳江镇社会保险基金收入决算表
A33: 附表3-30 | B33: 2023年阳江镇社会保险基金支出决算表
A34: #附表3-31 | B34: 2023年阳江镇政府债务限额及余额情况表 | C34: 阳江镇地方政府债务
A35: *附表3-32 | B35: 2023年阳江镇一般债务余额情况表
A36: *附表3-33 | B36: 2023年阳江镇政府专项债务余额情况表
A37: #附表3-34 | B37: 阳江镇地方政府债券发行及还本付息情况表
A38: #附表3-35 | B38: 2023年阳江镇政府债务限额提前下达情况表
A39: #附表3-36 | B39: 2023年阳江镇政府债券资金安排表
A40: 注：*为财政部一体化规范规定表样；#为财政部关于地方政府债务信息公开参考表样

Sheet 政府预算执行报表-1
A1: 附表3-1
A2: 2023年阳江镇一般公共收入决算表
D3: 单位：万元
A4: 项 目 | B4: 上年执行数 | C4: 本年执行数 | D4: 本年执行数为上年执行数的％
A6: 一、税收收入 | B6: =SUM(B7:B19) -> 19830 | C6: =SUM(C7:C19) -> 20447 | D6: =C6/B6*100 -> 103.1
A7: 增值税 | B7: 12305 | C7: 13088 | D7: =C7/B7*100 -> 106.4
A8: 企业所得税 | B8: 3193 | C8: 4149 | D8: 129.9
A9: 个人所得税 | B9: 2584 | C9: 1353 | D9: 52.4
A10: 资源税
A11: 城市维护建设税 | B11: 1000 | C11: 966 | D11: 96.5
A12: 房产税 | B12: 43 | C12: 45 | D12: 103.4
A13: 印花税 | B13: 232 | C13: 428 | D13: =C14/B13*100 -> 8.1
A14: 城镇土地使用税 | B14: 18 | C14: 19 | D14: =C15/B14*100 -> 0.0
A15: 土地增值税 | B15: 49
A16: 车船税 | B16: 381 | C16: 385 | D16: 100.9
A17: 耕地占用税
A18: 契税 | B18: 10 | C18: 4
A19: 环境保护税 | B19: 13 | C19: 12 | D19: 87.6
A20: 二、非税收入 | B20: =SUM(B21:B24) -> 7 | C20: =SUM(C21:C24) -> 17
A21: 专项收入
A22: 文化事业建设费收入 | B22: 5 | C22: 11
A23: 国有资源（资产）有偿使用收入 | B23: 2 | C23: 7
A24: 其他收入
A25: 本级收入合计 | B25: =B6+B20 -> 19837 | C25: =C6+C20 -> 20465 | D25: =C25/B25*100 -> 103.2
A26: 地方政府一般债务收入
A27: 转移性收入 | B27: =B28+B29 -> 22778 | C27: =C28+C29 -> 18318
A28: 一般性转移支付收入 | B28: 7704 | C28: 7109
A29: 专项转移支付收入 | B29: 15074 | C29: 11209
A30: 省补助计划单列市收入
A31: 接受其他地区援助收入
A32: 调入资金
A33: 动用预算稳定调节基金
A34: 地方政府一般债务转贷收入
A35: 上年结转收入
A36: 上年结余收入
A37: 收入总计 | B37: =B25+B28+B29 -> 42615 | C37: =C25+C28+C29 -> 38783 | D37: =C37/B37*100 -> 91.01

Sheet 政府预算执行报表-2
A1: 附表3-2
A2: 2023年阳江镇一般公共支出决算表
D3: 单位：万元
A4: 项 目 | B4: 上年执行数 | C4: 本年执行数 | D4: 本年执行数为上年执行数的％
A5: 一、一般公共服务支出
A6: 一般公共服务支出 | B6: 2700 | C6: 3,711 | D6: =C6/B6*100 -> 137.43
A7: 国防支出 | B7: 13
A8: 公共安全支出 | B8: 257 | C8: 254 | D8: =C8/B8*100 -> 99.01
A9: 教育支出 | B9: 1077 | C9: 971 | D9: 90.11
A10: 科学技术支出 | B10: 70
A11: 文化旅游体育与传媒支出 | B11: 44 | C11: 119 | D11: 270.89
A12: 社会保障和就业支出 | B12: 5828 | C12: 7,027 | D12: 120.57
A13: 卫生健康支出 | B13: 827 | C13: 1,644 | D13: 198.89
A14: 节能环保支出 | B14: 40 | C14: 10 | D14: 25.00
A15: 城乡社区支出 | B15: 199 | C15: 525 | D15: 263.91
A16: 农林水支出 | B16: 13608 | C16: 9,298 | D16: 68.33
A17: 交通运输支出 | B17: 28
A18: 资源勘探工业信息等支出 | B18: 191 | C18: 60 | D18: 31.34
A19: 商业服务业等支出 | B19: 24 | C19: 4 | D19: 15.49
A20: 住房保障支出 | B20: 104 | C20: 110 | D20: 105.97
A21: 粮油物资储备支出
A22: 灾害防治及应急管理支出 | C22: 2
A23: 其他支出 | C23: 115
A24: 本级支出合计 | B24: =SUM(B6:B23) -> 25010 | C24: =SUM(C6:C23) -> 23851
A25: 预备费
A26: 地方政府一般债务还本支出
A27: 转移性支出 | B27: =B28 -> 15845 | C27: 14932
A28: 上解上级支出 | B28: 15845 | C28: 14932
A29: 计划单列市上解省支出
A30: 援助其他地区支出
A31: 调出资金
A32: 安排预算稳定调节基金
A33: 补充预算周转金
A34: 年终结转
A35: 年终结余
A36: 支出总计 | B36: =B24+B27+B25 -> 40855 | C36: =C24+C27+C25 -> 38783
A37: 注：上年执行数包含上级转移支付资金。

Sheet 政府预算执行报表-3
A1: 附表3-3
A2: 2023年阳江镇镇本级一般公共收入决算表
D3: 单位：万元
A4: 项 目 | B4: 上年执行数 | C4: 本年执行数 | D4: 本年执行数为上年执行数的％
A6: 一、税收收入 | B6: =SUM(B7:B19) -> 19830 | C6: =SUM(C7:C19) -> 20447 | D6: 87.6
A7: 增值税 | B7: 12305 | C7: 13088 | D7: 89.4
A8: 企业所得税 | B8: 3193 | C8: 4149 | D8: 109.6
A9: 个人所得税 | B9: 2584 | C9: 1353 | D9: 38.7
A10: 资源税
A11: 城市维护建设税 | B11: 1000 | C11: 966 | D11: 95.0
A12: 房产税 | B12: 43 | C12: 45 | D12: 231.7
A13: 印花税 | B13: 232 | C13: 428 | D13: 150.6
A14: 城镇土地使用税 | B14: 18 | C14: 19 | D14: 562.4
A15: 土地增值税 | B15: 49 | D15: 0.0
A16: 车船税 | B16: 381 | C16: 385 | D16: 86.6
A17: 耕地占用税
A18: 契税 | B18: 10 | C18: 4 | D18: 0.0
A19: 环境保护税 | B19: 13 | C19: 12 | D19: 379.7
A20: 二、非税收入 | B20: =SUM(B21:B24) -> 7 | C20: =SUM(C21:C23) -> 17
A21: 专项收入
A22: 文化事业建设费收入 | B22: 5 | C22: 11
A23: 国有资源（资产）有偿使用收入 | B23: 2 | C23: 7
A24: 其他收入
A25: 本级收入合计 | B25: =B20+B6 -> 19837 | C25: =C20+C6 -> 20465 | D25: 87.6
A26: 地方政府一般债务收入
A27: 转移性收入 | C27: =C28+C29 -> 18318
A28: 一般性转移支付收入 | B28: 7704 | C28: 7109
A29: 专项转移支付收入 | B29: 15074 | C29: 11209
A30: 省补助计划单列市收入
A31: 下级上解收入
A32: 接受其他地区援助收入
A33: 调入资金
A34: 从政府性基金预算调入一般公共预算
A35: 从国有资本经营预算调入一般公共预算
A36: 从其他资金调入一般公共预算
A37: 动用预算稳定调节基金
A38: 地方政府一般债务转贷收入
A39: 上年结转收入
A40: 上年结余收入
A41: 收 入 总 计 | B41: 42615 | C41: =C25+C27 -> 38783

Sheet 政府预算执行报表-4
A1: 附表3-4
A2: 2023年阳江镇镇本级一般公共支出决算表
D3: 单位：万元
A4: 项 目 | B4: 上年执行数 | C4: 本年执行数 | D4: 本年执行数为上年执行数的％
A5: 一、一般公共服务支出
A6: 一般公共服务支出 | B6: 2700 | C6: 3,711 | D6: =C6/B6 -> 137.43%
A7: 国防支出 | B7: 13
A8: 公共安全支出 | B8: 257 | C8: 254 | D8: =C8/B8 -> 99.01%
A9: 教育支出 | B9: 1077 | C9: 971 | D9: 90.11%
A10: 科学技术支出 | B10: 70
A11: 文化旅游体育与传媒支出 | B11: 44 | C11: 119 | D11: 270.89%
A12: 社会保障和就业支出 | B12: 5828 | C12: 7,027 | D12: 120.57%
A13: 卫生健康支出 | B13: 827 | C13: 1,644 | D13: 198.89%
A14: 节能环保支出 | B14: 40 | C14: 10 | D14: 25.00%
A15: 城乡社区支出 | B15: 199 | C15: 525 | D15: 263.91%
A16: 农林水支出 | B16: 13608 | C16: 9,298 | D16: 68.33%
A17: 交通运输支出 | B17: 28
A18: 资源勘探工业信息等支出 | B18: 191 | C18: 60 | D18: 31.34%
A19: 商业服务业等支出 | B19: 24 | C19: 4 | D19: 15.49%
A20: 住房保障支出 | B20: 104 | C20: 110
A21: 粮油物资储备支出
A22: 灾害防治及应急管理支出 | C22: 2
A23: 其他支出 | C23: 115
A24: 本级支出合计 | B24: =SUM(B6:B23) -> 25010 | C24: =SUM(C6:C23) -> 23851
A25: 预备费
A26: 地方政府一般债务还本支出
A27: 转移性支出 | B27: 15845 | C27: 14932
A28: 一般性转移支付
A29: 专项转移支付
A30: 计划单列市上解省支出
A31: 上解上级支出 | B31: 15845 | C31: 14932
A32: 援助其他地区支出
A33: 调出资金
A34: 安排预算稳定调节基金
A35: 补充预算周转金
A36: 地方政府一般债务转贷支出
A37: 年终结转
A38: 年终结余
A39: 支出总计 | B39: 40855 | C39: 38783 | D39: =C39/B39*100 -> 94.93
A40: 注：上年执行数包含上级转移支付资金。

Sheet 政府预算执行报表-5
A1: 附表3-5
A2: 2023年阳江镇镇本级一般公共收支平衡情况表
C3: 单位：万元
A4: 收 入 项 目 | B4: 本年执行数 | C4: 支 出 项 目 | D4: 本年执行数
A5: 1.镇级一般公共预算收入 | B5: 20465 | C5: 1.镇级一般公共预算支出 | D5: 23851
A6: 2.地方政府一般债务收入 | C6: 2.预备费
A7: 3.上级补助收入 | B7: =B8+B9 -> 18318 | C7: 3.地方政府一般债务还本支出
A8: 一般性转移支付收入 | B8: 7109 | C8: 4.补助下级支出
A9: 专项转移支付收入 | B9: 11209 | C9: 一般性转移支付支出
A10: 4.下级上解收入 | C10: 专项转移支付支出
A11: 5.接受其他地区援助收入 | C11: 5.上解上级支出 | D11: 14932
A12: 6.调入资金 | C12: 6.接受其他地区援助收入
A13: 7.动用预算稳定调节基金 | C13: 7.调出资金
A14: 8.地方政府一般债务转贷收入 | C14: 8.安排预算稳定调节基金
A15: 9.上年结转收入 | C15: 9.补充预算周转金
A16: 10.上年结余收入 | C16: 10.地方政府一般债券转贷支出
C17: 11.年终结转
C18: 12.年终结余
A19: 收入总计 | B19: =B5+B7 -> 38783 | C19: 支出总计 | D19: =SUM(D5:D18) -> 38783

Sheet 政府预算执行报表-6
A1: 附表3-6
A2: 2023年阳江镇镇本级一般公共支出决算表 （按经济科目分类）
A3: 单位：万元
A4: 支出科目 | B4: 上年执行数 | C4: 本年执行数
A5: 镇级支出合计 | B5: =B6+B11+B21+B24+B30+B32+B38+B40+B28 -> 25010 | C5: =C6+C11+C21+C24+C30+C32+C38+C40+C28 -> 23851
A6: 一、机关工资福利支出 | B6: =B7+B8+B9+B10 -> 2490 | C6: =C7+C8+C9+C10 -> 4184
A7: 工资奖金津补贴 | B7: 1709 | C7: 1382
A8: 社会保障缴费 | B8: 357 | C8: 176
A9: 住房公积金 | B9: 200 | C9: 168
A10: 其他工资福利支出 | B10: 224 | C10: 2457
A11: 二、机关商品和服务支出 | B11: =B12+B17+B18+B19+B20+B16 -> 482 | C11: =C12+C17+C18+C19+C20+C16 -> 2453
A12: 办公经费 | B12: 108 | C12: 74
A13: 会议费
A14: 培训费
A15: 工会经费
A16: 委托业务费 | C16: 2
A17: 公务接待费 | B17: 0
A18: 公务用车运行维护费 | B18: 2
A19: 维修(护)费 | B19: 4
A20: 其他商品和服务支出 | B20: 369 | C20: 2377
A21: 三、机关资本性支出(二) | B21: =B22+B23 -> 757 | C21: =C22+C23 -> 3442
A22: 基础设施建设 | B22: 732 | C22: 385
A23: 其他资本性支出 | B23: 25 | C23: 3056
A24: 四、对事业单位经常性补助 | B24: =B25+B26+B27 -> 2150 | C24: =C25+C26+C27 -> 834
A25: 工资福利支出 | B25: 1917 | C25: 834
A26: 商品和服务支出 | B26: 14
A27: 其他对事业单位补助 | B27: 219
A28: 五、对事业单位资本性补助 | B28: =B29 -> 0 | C28: =C29 -> 20
A29: 资本性支出(一) | C29: 20
A30: 六、对企业补助 | B30: =B31 -> 153 | C30: =C31 -> 72
A31: 其他对企业补助 | B31: 153 | C31: 72
A32: 七、对个人和家庭的补助 | B32: =B33+B35+B36+B37+B34 -> 3227 | C32: =C33+C35+C36+C37+C34 -> 8710
A33: 社会福利和救助 | B33: 1759 | C33: 212
A34: 助学金 | C34: 64
A35: 个人农业生产补贴 | B35: 740 | C35: 482
A36: 离退休费 | B36: 319 | C36: 352
A37: 其他对个人和家庭补助 | B37: 408 | C37: 7601
A38: 八、对社会保障基金补助 | B38: =B39 -> 3010 | C38: =C39 -> 980
A39: 对社会保障基金补助 | B39: 3010 | C39: 980
A40: 九、其他支出 | B40: =B41 -> 12742 | C40: =C41 -> 3156
A41: 其他支出 | B41: 12742 | C41: 3156
A42: 十、预备费
A43: 预备费
A44: 注：上年执行数包含上级转移支付资金。

Sheet 政府预算执行报表-7
A1: 附表3-7
A2: 2023年阳江镇镇本级一般公共本级支出决算表
D3: 单位：万元
A4: 项 目 | B4: 上年执行数 | C4: 本年执行数 | D4: 本年执行数为上年执行数的％
A5: 一、 一般公共服务支出 | B5: 2700 | C5: 3711 | D5: =C5/B5*100 -> 137.46
A6: 人大事务 | B6: 59 | C6: 64 | D6: =C6/B6*100 -> 108.26
A7: 行政运行 | B7: 59 | C7: 57 | D7: =C7/B7*100 -> 97.08
A8: 一般行政管理事务 | C8: 7
A9: 政府办公厅(室)及相关机构事务 | B9: 2033 | C9: 2356 | D9: =C9/B9*100 -> 115.90
A10: 行政运行 | B10: 1726 | C10: 1556 | D10: =C10/B10*100 -> 90.16
A11: 信访事务 | B11: 20
A12: 其他政府办公厅(室)及相关机构事务支出 | B12: 287 | C12: 800 | D12: =C12/B12*100 -> 278.73
A13: 发展与改革事务 | C13: 48
A14: 一般行政管理事务 | C14: 48
A15: 统计信息事务 | B15: 27 | C15: 25 | D15: =C15/B15*100 -> 90.78
A16: 行政运行 | B16: 27 | C16: 25 | D16: 90.78
A17: 财政事务 | B17: 241 | C17: 188 | D17: 78.03
A18: 行政运行 | B18: 209 | C18: 176 | D18: 84.23
A19: 其他财政事务支出 | B19: 32 | C19: 12 | D19: 37.50
A20: 群众团体事务 | B20: 58 | C20: 28 | D20: 48.00
A21: 行政运行 | B21: 24 | C21: 20 | D21: 83.91
A22: 一般行政管理事务 | C22: 2
A23: 工会事务 | B23: 20
A24: 其他群众团体事务支出 | B24: 14 | C24: 6
A25: 党委办公厅(室)及相关机构事务 | B25: 199 | C25: 198 | D25: =C25/B25*100 -> 99.44
A26: 行政运行 | B26: 199 | C26: 198 | D26: =C26/B26*100 -> 99.44
A27: 组织事务 | B27: 33 | C27: 87 | D27: =C27/B27*100 -> 262.12
A28: 一般行政管理事务 | B28: 10 | C28: 5 | D28: =C28/B28*100 -> 50.00
A29: 其他组织事务支出 | B29: 23 | C29: 82 | D29: =C29/B29*100 -> 354.35
A30: 宣传事务 | B30: 31 | C30: 0
A31: 宣传管理 | B31: 31 | C31: 0
A32: 其他共产党事务支出 | C32: 17
A33: 其他共产党事务支出 | C33: 17
A34: 其他一般公共服务支出 | B34: 21 | C34: 701 | D34: =C34/B34*100 -> 3340.43
A35: 其他一般公共服务支出 | B35: 21 | C35: 701 | D35: =C35/B35*100 -> 3340.43
A36: 二、国防支出 | B36: 13
A37: 其他国防支出 | B37: 13
A38: 其他国防支出 | B38: 13
A39: 三、公共安全支出 | B39: 257 | C39: 254 | D39: =C39/B39*100 -> 98.93
A40: 公安 | B40: 202 | C40: 254 | D40: =C40/B40*100 -> 125.86
A41: 信息化建设 | C41: 123
A42: 其他公安支出 | B42: 202 | C42: 131 | D42: =C42/B42*100 -> 65.10
A43: 国家司法救助支出 | B43: 8
A44: 其他公共安全支出 | B44: 47
A45: 四、教育支出 | B45: 1077 | C45: 971 | D45: =C45/B45*100 -> 90.13
A46: 教育管理事务 | B46: 608
A47: 行政运行 | B47: 608
A48: 普通教育 | B48: 257 | C48: 802 | D48: =C48/B48*100 -> 311.90
A49: 学前教育 | B49: 128 | C49: 735 | D49: 574.41
A50: 其他普通教育支出 | B50: 129 | C50: 66 | D50: 51.42
A51: 教育费附加安排的支出 | B51: 17 | C51: 83 | D51: 487.53
A52: 其他教育费附加安排的支出 | B52: 17 | C52: 83 | D52: 487.53
A53: 其他教育支出 | B53: 196 | C53: 86 | D53: 44.03
A54: 其他教育支出 | B54: 196 | C54: 86 | D54: 44.03
A55: 五、科学技术支出 | B55: 70
A56: 其他科学技术支出 | B56: 70
A57: 其他科学技术支出 | B57: 70
A58: 六、文化旅游体育与传媒支出 | B58: 44 | C58: 119 | D58: =C58/B58*100 -> 270.45
A59: 文化和旅游 | B59: 44 | C59: 19 | D59: =C59/B59*100 -> 43.18
A60: 群众文化 | B60: 14 | C60: 10 | D60: =C60/B60*100 -> 71.43
A61: 其他文化和旅游支出 | B61: 30 | C61: 9 | D61: =C61/B61*100 -> 30.00
A62: 文物 | C62: 100
A63: 文物保护 | C63: 100
A64: 七、社会保障和就业支出 | B64: 5828 | C64: 7027 | D64: =C64/B64*100 -> 120.57
A65: 人力资源和社会保障管理事务 | B65: 210 | C65: 29 | D65: =C65/B65*100 -> 13.76
A66: 事业运行 | B66: 94 | C66: 29 | D66: =C66/B66*100 -> 30.74
A67: 其他人力资源和社会保障管理事务支出 | B67: 116
A68: 民政管理事务 | B68: 627 | C68: 494 | D68: =C68/B67*100 -> 426.09
A69: 基层政权建设和社区治理 | B69: 494 | C69: 318 | D69: =C69/B69*100 -> 64.27
A70: 其他民政管理事务支出 | B70: 132 | C70: 177 | D70: =C70/B70*100 -> 133.91
A71: 行政事业单位养老支出
A72: 机关事业单位基本养老保险缴费支出
A73: 机关事业单位职业年金缴费支出
A74: 抚恤 | B74: 417 | C74: 810 | D74: =C74/B74*100 -> 194.24
A75: 伤残抚恤 | B75: 129 | C75: 180 | D75: =C75/B75*100 -> 139.53
A76: 在乡复员、退伍军人生活补助 | B76: 118
A77: 义务兵优待 | B77: 8
A78: 其他优抚支出 | B78: 162 | C78: 630 | D78: =C78/B78*100 -> 388.89
A79: 退役安置 | B79: 192 | C79: 261 | D79: =C79/B79*100 -> 135.72
A80: 退役士兵安置 | B80: 188 | C80: 261 | D80: =C80/B80*100 -> 138.61
A81: 其他退役安置支出 | B81: 4
A82: 社会福利 | B82: 1147 | C82: 574 | D82: =C82/B82*100 -> 50.03
A83: 儿童福利 | B83: 189 | C83: 83 | D83: =C83/B83*100 -> 44.01
A84: 老年福利 | B84: 217 | C84: 241 | D84: =C84/B84*100 -> 110.94
A85: 殡葬
A86: 养老服务 | B86: 736 | C86: 230 | D86: =C86/B86*100 -> 31.23
A87: 其他社会福利支出 | C87: 20
A88: 残疾人事业 | B88: 774 | C88: 1225 | D88: 158.32
A89: 残疾人生活和护理补贴 | B89: 751 | C89: 1185 | D89: 157.84
A90: 其他残疾人事业支出 | B90: 24 | C90: 40 | D90: 166.67
A91: 特困人员救助供养 | B91: 37 | C91: 5 | D91: 12.58
A92: 农村特困人员救助供养支出 | B92: 37 | C92: 5 | D92: 12.58
A93: 财政对基本养老保险基金的补助 | B93: 1929 | C93: 3463 | D93: 179.53
A94: 财政对城乡居民基本养老保险基金的补助 | B94: 1929 | C94: 3136 | D94: 162.58
A95: 财政对其他基本养老保险基金的补助 | C95: 327
A96: 财政对其他社会保险基金的补助 | B96: 495
A97: 其他财政对社会保险基金的补助 | B97: 495
A98: 其他社会保障和就业支出 | C98: 166
A99: 其他社会保障和就业支出 | C99: 166
A100: 八、卫生健康支出 | B100: 827 | C100: 1644 | D100: =C100/B100*100 -> 198.85
A101: 卫生健康管理事务 | B101: 60
A102: 其他卫生健康管理事务支出 | B102: 60
A103: 基层医疗卫生机构 | B103: 2 | C103: 2 | D103: =C103/B103*100 -> 98.71
A104: 其他基层医疗卫生机构支出 | B104: 2 | C104: 2 | D104: =C104/B104*100 -> 98.71
A105: 财政对基本医疗保险基金的补助 | B105: 754 | C105: 1642 | D105: =C105/B105*100 -> 217.83
A106: 财政对城乡居民基本医疗保险基金的补助 | B106: 754 | C106: 1642 | D106: =C106/B106*100 -> 217.83
A107: 其他卫生健康支出 | B107: 11
A108: 其他卫生健康支出 | B108: 11
A109: 九、节能环保支出 | B109: 40 | C109: 10 | D109: =C109/B109*100 -> 25.00
A110: 其他节能环保支出 | B110: 40 | C110: 10 | D110: =C110/B110*100 -> 25.00
A111: 其他节能环保支出 | B111: 40 | C111: 10 | D111: =C111/B111*100 -> 25.00
A112: 十、城乡社区支出 | B112: 199 | C112: 525 | D112: =C112/B112*100 -> 263.99
A113: 城乡社区管理事务 | B113: 196 | C113: 132 | D113: =C113/B113*100 -> 67.27
A114: 行政运行 | B114: 116
A115: 城管执法 | B115: 19 | C115: 10 | D115: =C115/B115*100 -> 50.24
A116: 其他城乡社区管理事务支出 | B116: 60 | C116: 122 | D116: =C116/B116*100 -> 203.83
A117: 城乡社区公共设施 | B117: 3 | C117: 170 | D117: =C117/B117*100 -> 5650.00
A118: 小城镇基础设施建设 | B118: 3 | C118: 170 | D118: =C118/B118*100 -> 5650.00
A119: 城乡社区环境卫生
A120: 城乡社区环境卫生
A121: 其他城乡社区支出 | C121: 224
A122: 其他城乡社区支出 | C122: 224
A123: 十一、农林水支出 | B123: 13608 | C123: 9298 | D123: =C123/B123*100 -> 68.33
A124: 农业农村 | B124: 6795 | C124: 4318 | D124: =C124/B124*100 -> 63.55
A125: 事业运行 | B125: 567 | C125: 457 | D125: =C125/B125*100 -> 80.60
A126: 执法监管 | B126: 33
A127: 防灾救灾 | B127: 10
A128: 农业生产发展 | B128: 33 | C128: 1226 | D128: =C128/B128*100 -> 3716.17
A129: 农村合作经济 | B129: 14
A130: 农村社会事业 | B130: 880 | C130: 394 | D130: =C130/B130*100 -> 44.77
A131: 农业资源保护修复与利用 | B131: 1130 | C131: 956 | D131: 84.60
A132: 农村道路建设 | B132: 703 | C132: 249 | D132: 35.39
A133: 其他农业农村支出 | B133: 3425 | C133: 1036 | D133: 30.25
A134: 林业和草原 | B134: 7 | C134: 150 | D134: 2142.03
A135: 森林生态效益补偿 | B135: 7 | C135: 7 | D135: 107.00
A136: 其他林业和草原支出 | C136: 142
A137: 水利 | B137: 181 | C137: 134 | D137: =C137/B137*100 -> 73.77
A138: 水利行业业务管理 | B138: 3 | C138: 3 | D138: =C138/B138*100 -> 86.67
A139: 水利工程建设 | B139: 159
A140: 水利工程运行与维护 | C140: 68
A141: 农村水利 | C141: 28
A142: 其他水利支出 | B142: 19 | C142: 35 | D142: =C142/B142*100 -> 183.79
A143: 农村综合改革 | B143: 3684 | C143: 3494 | D143: 94.84
A144: 对村级公益事业建设的补助 | B144: 643 | C144: 587 | D144: 91.35
A145: 对村集体经济组织的补助 | B145: 160 | C145: 90 | D145: 56.25
A146: 农村综合改革示范试点补助 | B146: 2882 | C146: 2817 | D146: 97.73
A147: 其他农林水支出 | B147: 2940 | C147: 1203 | D147: 40.91
A148: 其他农林水支出 | B148: 2940 | C148: 1203 | D148: 40.91
A149: 十二、交通运输支出 | B149: 28
A150: 公路水路运输 | B150: 28
A151: 其他公路水路运输支出 | B151: 28
A152: 十三、资源勘探工业信息等支出 | B152: 191 | C152: 60 | D152: =C152/B152*100 -> 31.41
A153: 工业和信息产业监管 | B153: 181
A154: 产业发展 | B154: 105
A155: 事业运行 | B155: 76
A156: 支持中小企业发展和管理支出 | B156: 10 | C156: 60 | D156: =C156/B156*100 -> 600.00
A157: 中小企业发展专项 | B157: 10 | C157: 60 | D157: =C157/B157*100 -> 600.00
A158: 十四、商业服务业等支出 | C158: 4
A159: 商业流通事务 | B159: 1
A160: 其他商业流通事务支出 | B160: 1
A161: 涉外发展服务支出 | B161: 1 | C161: 4 | D161: =C161/B161*100 -> 366.00
A162: 其他涉外发展服务支出 | B162: 1 | C162: 4 | D162: =C162/B162*100 -> 366.00
A163: 其他商业服务业等支出 | B163: 22
A164: 其他商业服务业等支出 | B164: 22
A165: 十五、住房保障支出 | B165: 104 | C165: 110 | D165: =C165/B165*100 -> 106.24
A166: 住房改革支出 | B166: 104 | C166: 110 | D166: =C166/B166*100 -> 106.24
A167: 住房公积金 | B167: 104
A168: 提租补贴 | C168: 110
A169: 十六、灾害防治及应急管理支出 | C169: 2
A170: 自然灾害救灾及恢复重建支出 | C170: 2
A171: 自然灾害救灾补助 | C171: 2
A172: 十七、其他支出 | C172: 115
A173: 其他支出 | C173: 115
A174: 其他支出 | C174: 115
A175: 十八、预备费
A176: 预备费
A177: 预备费
A178: 支出合计 | B178: 25010 | C178: =C175+C172+C169+C165+C158+C152+C123+C112+C109+C100+C64+C58+C45+C39+C5 -> 23851 | D178: =C178/B178*100 -> 95.36
A179: 注：上年执行数包含上级转移支付资金。

Sheet 政府预算执行报表-8
A1: 附表3-8
A2: 2023年阳江镇镇本级一般公共基本支出决算表
D3: 单位：万元
A4: 项 目 | B4: 上年执行数 | C4: 本年执行数 | D4: 本年执行数为上年执行数的％
A5: 一、机关工资福利支出 | B5: 2490 | C5: 4184 | D5: =C5/B5*100 -> 168.01
A6: 工资奖金津补贴 | B6: 1709 | C6: 1382 | D6: 80.86
A7: 社会保障缴费 | B7: 357 | C7: 176 | D7: 49.36
A8: 住房公积金 | B8: 200 | C8: 168 | D8: 83.98
A9: 其他工资福利支出 | B9: 224 | C9: 2457 | D9: 1099.31
A10: 二、机关商品和服务支出 | B10: 482 | C10: 2453 | D10: 508.99
A11: 办公经费 | B11: 108 | C11: 74 | D11: 68.68
A12: 会议费
A13: 培训费
A14: 工会经费
A15: 委托业务费 | C15: 2
A16: 公务接待费 | B16: 0
A17: 公务用车运行维护费 | B17: 2
A18: 维修(护)费 | B18: 4
A19: 其他商品和服务支出 | B19: 369 | C19: 2377 | D19: =C19/B19*100 -> 644.45
A20: 三、机关资本性支出(二) | B20: 757 | C20: 3442 | D20: 454.61
A21: 基础设施建设 | B21: 732 | C21: 385 | D21: 52.63
A22: 其他资本性支出 | B22: 25 | C22: 3056 | D22: 12284.39
A23: 四、对事业单位经常性补助 | B23: 2150 | C23: =C24+C25+C26 -> 834 | D23: 38.76
A24: 工资福利支出 | B24: 1917 | C24: 834 | D24: 43.48
A25: 商品和服务支出 | B25: 14
A26: 其他对事业单位补助 | B26: 219
A27: 五、对事业单位资本性补助 | C27: =C28 -> 20
A28: 资本性支出(一) | C28: 20
A29: 六、对企业补助 | B29: 153 | C29: =C30 -> 72 | D29: =C29/B29*100 -> 47.06
A30: 其他对企业补助 | B30: 153 | C30: 72 | D30: =C30/B30*100 -> 47.06
A31: 七、对个人和家庭的补助 | B31: 3227 | C31: =C32+C34+C35+C36+C33 -> 8710 | D31: =C31/B31*100 -> 269.91
A32: 社会福利和救助 | B32: 1759 | C32: 212 | D32: =C32/B32*100 -> 12.03
A33: 助学金 | C33: 64
A34: 个人农业生产补贴 | B34: 740 | C34: 482 | D34: =C34/B35*100 -> 150.94
A35: 离退休费 | B35: 319 | C35: 352 | D35: =C35/B36*100 -> 86.23
A36: 其他对个人和家庭补助 | B36: 408 | C36: 7601 | D36: =C36/B37*100 -> 252.55
A37: 八、对社会保障基金补助 | B37: 3010 | C37: =C38 -> 980 | D37: =C37/B37*100 -> 32.56
A38: 对社会保障基金补助 | B38: 3010 | C38: 980 | D38: =C38/B38*100 -> 32.56
A39: 九、其他支出 | B39: 12742 | C39: =C40 -> 3156 | D39: =C39/B39*100 -> 24.77
A40: 其他支出 | B40: 12742 | C40: 3156 | D40: =C40/B40*100 -> 24.77
A41: 十、预备费
A42: 预备费
A43: 支出合计 | B43: =B5+B10+B20+B23+B29+B31+B37+B39+B27 -> 25010 | C43: =C5+C10+C20+C23+C29+C31+C37+C39+C27 -> 23851 | D43: =C43/B43*100 -> 95.36
A44: 注：上年执行数包含上级转移支付资金。

Sheet 政府预算执行报表-9
A1: 附表3-9
A2: 2023年阳江镇镇本级一般公共对下级的转移支付分项目决算表
D3: 单位：万元
A4: 项 目 | B4: 上年执行数 | C4: 本年执行数 | D4: 本年执行数为上年执行数的％
A5: 一、一般性转移支付
A6: 均衡性转移支付
A7: 重点生态功能区转移支付
A8: 县级基本财力保障机制奖补资金
A9: 资源枯竭城市转移支付
A10: ……
A11: 二、专项转移支付
A12: XXXXXXXXXXXXXX项目
A13: XXXXXXXXXXXXXX项目
A14: XXXXXXXXXXXXXX项目
A15: ……
A16: 合 计
A17: 注：本表为空表

Sheet 政府预算执行报表-11
A1: 附表3-11
A2: 2023年阳江镇镇本级财政专项资金清单及安排情况决算表
A4: 序号 | B4: 项目名称 | C4: 项目金额 | D4: 实施部门
A10: 注：各地可结合实际制定表样。
A11: 注：本表为空表

Sheet 政府预算执行报表-10
A1: 附表3-10
A2: 2023年阳江镇镇本级一般公共对下级的转移支付分地区决算表
D3: 单位：万元
A4: 地 区 | B4: 上年执行数 | C4: 本年执行数 | D4: 本年执行数为上年执行数的％
A5: **
A6: **
A7: **
A8: ……
A9: 合 计
A10: 注：本表为空表

Sheet 政府预算执行报表-12
A1: 附表3-12
A2: 2023年阳江镇镇本级一般公共预算“三公”经费、会议费、 培训费、机关运行经费决算表
C3: 单位：万元
A4: 支 出 项 目 | B4: 上年执行数 | C4: 本年执行数
A5: 一、“三公”经费支出合计 | B5: 7.60 | C5: 7.80
A6: 1.因公出国（境）费
A7: 2.公务用车购置及运行维护费 | B7: 5.50 | C7: 6.60
A8: 公务用车购置
A9: 公务用车运行维护费 | B9: 5.50 | C9: 6.60
A10: 3.公务接待费 | B10: 2.10 | C10: 1.20
A11: 二、会议费 | B11: 1.30 | C11: 10.40
A12: 三、培训费 | B12: 1.50 | C12: 7.60
A13: 四、机关运行经费 | B13: 260.00 | C13: 248.00

Sheet 政府预算执行报表-13
A1: 附表3-13
A2: 2023年阳江镇政府性基金收入决算表
D3: 单位：万元
A4: 项 目 | B4: 上年执行数 | C4: 本年执行数 | D4: 本年执行数为上年执行数的％
A5: 一、地方农网还贷资金收入
A6: 二、海南省高等级公路车辆通行附加费收入
A7: 三、港口建设费收入
A8: ……
A9: 本级收入合计
A10: 地方政府专项债务收入
A11: 转移性收入
A12: 政府性基金补助收入 | B12: 11842 | C12: 9822 | D12: =C12/B12*100 -> 82.94
A13: 调入资金
A14: 债务转贷收入
A15: 上年结转收入
A16: 上年结余收入
A17: 收入总计 | B17: 11842 | C17: 9822 | D17: =C17/B17*100 -> 82.94

Sheet 政府预算执行报表-14
A1: 附表3-14
A2: 2023年阳江镇政府性基金支出决算表
D3: 单位：万元
A4: 项 目 | B4: 上年执行数 | C4: 本年执行数 | D4: 本年执行数为上年执行数的％
A5: 一、国有土地使用权出让收入安排的支出 | B5: 11602 | C5: 9535 | D5: =C5/B5*100 -> 82.18
A6: 二、城市基础设施配套费安排的支出 | B6: 180 | C6: 170 | D6: =C6/B6*100 -> 94.44
A7: 三、其他支出 | B7: 60 | C7: 116 | D7: =C7/B7*100 -> 193.96
A8: 本级支出合计 | B8: 11842 | C8: =C7+C6+C5 -> 9821.64 | D8: =C8/B8*100 -> 82.94
A9: 地方政府专项债务还本支出
A10: 转移性支出
A11: 政府性基金上解支出
A12: 调出资金
A13: 年终结转
A14: 年终结余
A15: 支出总计

Sheet 政府预算执行报表-15
A1: 附表3-15
A2: 2023年阳江镇镇本级政府性基金收入决算表
D3: 单位：万元
A4: 项 目 | B4: 上年执行数 | C4: 本年执行数 | D4: 本年执行数为上年执行数的％
A5: 一、地方农网还贷资金收入
A6: 二、海南省高等级公路车辆通行附加费收入
A7: 三、港口建设费收入
A8: ……
A9: 本级收入合计
A10: 地方政府专项债务收入
A11: 转移性收入
A12: 政府性基金转移收入 | B12: 11842 | C12: 9822 | D12: =C12/B12*100 -> 82.94
A13: 政府性基金补助收入 | B13: 11842 | C13: 9822 | D13: =C13/B13*100 -> 82.94
A14: 政府性基金上解收入
A15: 调入资金
A16: 地方政府专项债务转贷收入
A17: 上年结转收入
A18: 上年结余收入
A19: 收入总计 | B19: 11842 | C19: 9822 | D19: =C19/B19*100 -> 82.94

Sheet 政府预算执行报表-16
A1: 附表3-16
A2: 2023年阳江镇镇本级政府性基金支出决算表
D3: 单位：万元
A4: 项 目 | B4: 上年执行数 | C4: 本年执行数 | D4: 本年执行数为上年执行数的％
A5: 一、国有土地使用权出让收入安排的支出 | B5: 11602 | C5: 9535 | D5: =C5/B5*100 -> 82.18
A6: 二、城市基础设施配套费安排的支出 | B6: 180 | C6: 170 | D6: =C6/B6*100 -> 94.44
A7: 三、其他支出 | B7: 60 | C7: 116 | D7: =C7/B7*100 -> 193.96
A8: 本级支出合计 | B8: 11842 | C8: 9821.64 | D8: =C8/B8*100 -> 82.94
A9: 地方政府专项债务还本支出
A10: 转移性支出
A11: 政府性基金转移支付
A12: 政府性基金补助支出
A13: 政府性基金上解支出
A14: 调出资金
A15: 地方政府专项债务转贷支出
A16: 年终结转
A17: 年终结余
A18: 支出总计

Sheet 政府预算执行报表-17
A1: 附表3-17
A2: 2023年阳江镇镇本级政府性基金支出决算表 （按经济科目分类）
A3: 单位：万元
A4: 支出科目 | B4: 上年执行数 | C4: 本年预算数
A5: 镇本级支出合计 | B5: =B6+B8+B11+B15 -> 11842.00 | C5: =C6+C8+C11+C15 -> 9821.64
A6: 一、机关商品和服务支出 | B6: =B7 -> 0.00 | C6: =C7 -> 1353.19
A7: 其他商品服务支出 | C7: =873+3.062375+365.75655+111.3746 -> 1353.19
A8: 二、机关资本性支出 | B8: =B10+B9 -> 8546.00 | C8: =C10+C9 -> 2739.25
A9: 基础设施建设 | B9: 8546 | C9: 981.76
A10: 其他资本性支出 | C10: 1757.49
A11: 三、对个人和家庭的补助 | B11: =B12+B13+B14 -> 3296.00 | C11: =C12+C13+C14 -> 2589.90
A12: 社会福利和救助 | C12: 42.20
A13: 个人农业生产补贴 | B13: 2201 | C13: 2278.99
A14: 其他对个人和家庭的补助 | B14: 1095 | C14: =141.0898+127.61913 -> 268.71
A15: 四、其他支出 | B15: =B16 -> 0.00 | C15: =C16 -> 3139.30
A16: 其他支出 | C16: 3139.30

Sheet 政府预算执行报表-18
A1: 附表3-18
A2: 2023年阳江镇镇本级政府性本级支出决算表
D3: 单位：万元
A4: 项 目 | B4: 上年执行数 | C4: 本年执行数 | D4: 本年执行数为上年执行数的％
A5: 一、城乡社区支出 | B5: =B6+B13 -> 11782 | C5: =C6+C13 -> 9705 | D5: =C5/B5*100 -> 82.37
A6: 国有土地使用权出让收入安排的支出 | B6: =B7+B8+B9+B10+B11+B12 -> 11602 | C6: =C7+C8+C9+C10+C11+C12 -> 9535 | D6: =C6/B6*100 -> 82.19
A7: 城市建设支出 | B7: 53 | C7: 500 | D7: 943.40
A8: 农村基础设施建设支出 | B8: 1151 | C8: 1278 | D8: 111.06
A9: 农业生产发展支出 | B9: 9308 | C9: 7206 | D9: 77.42
A10: 农村社会事业支出 | B10: 1035 | C10: 536 | D10: 51.75
A11: 农业农村生态环境支出 | C11: 3
A12: 其他国有土地使用权出让收入安排的支出 | B12: 55 | C12: 12 | D12: 22.36
A13: 城市基础设施配套费安排的支出 | B13: 180 | C13: 170 | D13: 94.44
A14: 其他城市基础设施配套费安排的支出 | B14: 180 | C14: 170 | D14: 94.44
A15: 二、其他支出 | B15: 60 | C15: =C16 -> 116 | D15: 193.96
A16: 彩票公益金安排的支出 | B16: 60 | C16: 116 | D16: 193.96
A17: 用于社会福利的彩票公益金支出 | B17: 37 | C17: 111 | D17: 301.01
A18: 用于体育事业的彩票公益金支出 | B18: 23 | C18: 5 | D18: 21.74
A20: 支出合计 | B20: =B5+B15 -> 11842.00 | C20: =C5+C15 -> 9821.64 | D20: 82.94

Sheet 政府预算执行报表-19
A1: 附表3-19
A2: 2023年阳江镇镇本级政府性基金对下级的转移支付分项目决算表
D3: 单位：万元
A4: 项 目 | B4: 上年执行数 | C4: 本年执行数 | D4: 本年执行数为上年执行数的％
A5: 一、核电站乏燃料处理处置基金支出
A6: 二、国家电影事业发展专项资金安排支出
A7: 三、旅游发展基金支出
A8: 四、国家电影事业发展专项资金对应专项债务收入安排的支出
A9: 五、大中型水库移民后期扶持基金支出
A10: ……
A11: 支出总计
A12: 注：本表为空表

Sheet 政府预算执行报表-20
A1: 附表3-20
A2: 2023年阳江镇镇本级政府性基金对下级的转移支付分地区决算表
D3: 单位：万元
A4: 地 区 | B4: 上年执行数 | C4: 本年执行数 | D4: 本年执行数为上年执行数的％
A5: **
A6: **
A7: **
A8: ……
A9: 合 计
A10: 注：本表为空表

Sheet 政府预算执行报表-21
A1: 附表3-21
A2: 2023年阳江镇国有资本经营收入决算表
D3: 单位:万元
A4: 项 目 | B4: 上年执行数 | C4: 本年执行数 | D4: 本年执行数为上年执行数的％
A5: 一、利润收入
A6: 二、股利、股息收入
A7: 三、产权转让收入
A8: 四、清算收入
A9: 五、其他国有资本经营预算收入
A10: 本级收入合计
A11: 转移性收入
A12: 国有资本经营预算转移支付收入
A13: 国有资本经营预算上解收入
A14: 上年结转收入
A15: 上年结余收入
A16: 收入总计
A17: 注：本表为空表

Sheet 政府预算执行报表-22
A1: 附表3-22
A2: 2023年阳江镇国有资本经营支出决算表
D3: 单位：万元
A4: 项 目 | B4: 上年执行数 | C4: 本年执行数 | D4: 本年执行数为上年执行数的％
A5: 一、补充全国社会保障基金
A6: 国有资本经营预算补充社保基金支出
A7: 二、解决历史遗留问题及改革成本支出
A8: 厂办大集体改革支出
A9: “三供一业”移交补助支出
A10: ……
A11: 三、国有企业资本金注入
A12: 国有经济结构调整支出
A13: ……
A14: 四、国有企业政策性补贴
A15: 国有企业政策性补贴
A16: 五、金融国有资本经营预算支出
A17: 资本支出
A18: ……
A19: 六、其他国有资本经营预算支出
A20: 其他国有资本经营预算支出
A21: 本级支出合计
A22: 转移性支出
A23: 国有资本经营预算转移支付支出
A24: 国有资本经营预算上解支出
A25: 国有资本经营预算调出资金
A26: 年终结转
A27: 年终结余
A28: 支出总计
A29: 注：本表为空表

Sheet 政府预算执行报表-23
A1: 附表3-23
A2: 2023年阳江镇镇本级国有资本经营收入决算表
D3: 单位:万元
A4: 项 目 | B4: 上年执行数 | C4: 本年执行数 | D4: 本年执行数为上年执行数的％
A5: 一、利润收入
A6: 二、股利、股息收入
A7: 三、产权转让收入
A8: 四、清算收入
A9: 五、其他国有资本经营预算收入
A10: 本级收入合计
A11: 转移性收入
A12: 国有资本经营预算转移支付收入
A13: 国有资本经营预算上解收入
A14: 上年结转收入
A15: 上年结余收入
A16: 收入总计
A17: 注：本表为空表

Sheet 政府预算执行报表-24
A1: 附表3-24
A2: 2023年阳江镇镇本级国有资本经营支出决算表
D3: 单位：万元
A4: 项 目 | B4: 上年执行数 | C4: 本年执行数 | D4: 本年执行数为上年执行数的％
A5: 一、补充全国社会保障基金
A6: 国有资本经营预算补充社保基金支出
A7: 二、解决历史遗留问题及改革成本支出
A8: 厂办大集体改革支出
A9: “三供一业”移交补助支出
A10: ……
A11: 三、国有企业资本金注入
A12: 国有经济结构调整支出
A13: ……
A14: 四、国有企业政策性补贴
A15: 国有企业政策性补贴
A16: 五、金融国有资本经营预算支出
A17: 资本支出
A18: ……
A19: 六、其他国有资本经营预算支出
A20: 其他国有资本经营预算支出
A21: 本级支出合计
A22: 转移性支出
A23: 国有资本经营预算转移支付支出
A24: 国有资本经营预算上解支出
A25: 国有资本经营预算调出资金
A26: 年终结转
A27: 年终结余
A28: 支出总计
A29: 注：本表为空表

Sheet 政府预算执行报表-25
A1: 附表3-25
A2: 2023年阳江镇镇本级国有资本经营转移支付决算表
A3: 单位:万元
A4: 科目/项目 | B4: 合计 | C4: **地区 | D4: ** | E4: ** | F4: ** | G4: ** | H4: ** | I4: ** | J4: ** | K4: ** | L4: ** | M4: ** | N4: ** | O4: ……
A20: 注：根据《财政部办公厅关于印发财政预决算领域基层政务公开标准指引的通知》（财办发〔2019〕77号）相关规定，需公开国有资本经营预算对下转移支付情况（无数据也需公开空表）。无国有资本经营预算对下转移支付，所以本表为空。
A21: 注：本表为空表

Sheet 政府预算执行报表-26
A1: 附表3-26
A2: 2023年阳江镇镇本级国有资本经营支出决算表 （按经济科目分类）
A3: 单位：万元
A4: 支出科目 | B4: 上年执行数 | C4: 本年执行数
A5: 镇本级支出总计
A6: 一、对企业补助
A7: 费用补贴
A8: ……
A9: 二、对企业资本性支出
A10: 对企业资本性支出（一）
A11: ……
A12: 注：本表为空表

Sheet 政府预算执行报表-27
A1: 附表3-27
A2: 2023年阳江镇社会保险基金收入决算表
D3: 单位：万元
A4: 收 入 项 目 | B4: 上年执行数 | D4: 本年执行数
A6: 1.企业职工基本养老保险基金收入
A7: 2.城乡居民基本养老保险基金收入
A8: 3.机关事业单位基本养老保险基金收入
A9: 4.职工基本医疗保险（含生育保险）基金收入
A10: 5.城乡居民基本医疗保险基金收入
A11: 6.工伤保险基金收入
A12: 7.失业保险基金收入
A13: 8.其他社会保险基金收入
A14: 收入合计
A15: 9.上年结余收入
A16: 10.社会保险基金上级补助收入
A17: 11.社会保险基金转移收入
A18: 收入总计
A19: 注：本表为空表

Sheet 政府预算执行报表-28
A1: 附表3-28
A2: 2023年阳江镇社会保险基金支出决算表
C3: 单位：万元
A4: 支 出 项 目 | B4: 上年执行数 | C4: 本年执行数
A6: 1.企业职工基本养老保险基金支出
A7: （1）基本养老金
A8: （2）医疗补助金
A9: （3）丧葬抚恤补助
A10: （4）其他企业职工基本养老保险基金支出
A11: 2.城乡居民基本养老保险基金支出
A12: （1）基础养老金支出
A13: （2）个人账户养老金支出
A14: （3）丧葬抚恤补助支出
A15: （4）其他城乡居民基本养老保险基金支出
A16: 3.机关事业单位基本养老保险基金支出
A17: （1）基本养老金支出
A18: （2）其他机关事业单位基本养老保险基金支出
A19: 4.职工基本医疗保险（含生育保险）基金支出
A20: （1）职工基本医疗保险统筹基金
A21: （2）职工医疗保险个人账户基金
A22: （3）其他职工基本医疗保险基金支出
A23: 5.城乡居民基本医疗保险基金支出
A24: （1）城乡居民基本医疗保险基金医疗待遇支出
A25: （2）城乡居民大病保险支出
A26: （3）其他城乡居民基本医疗保险基金支出
A27: 6.工伤保险基金支出
A28: （1）工伤保险待遇
A29: （2）劳动能力鉴定支出
A30: （3）工伤预防费用支出
A31: （4）其他工伤保险基金支出
A32: 7.失业保险基金支出
A33: （1）失业保险金
A34: （2）医疗保险费
A35: （3）丧葬抚恤补助
A36: （4）职业培训和职业介绍补贴
A37: （5）技能提升补贴支出
A38: （6）稳定岗位补贴支出
A39: （7）其他费用支出
A40: （8）其他失业保险基金支出
A41: 8.其他社会保险基金支出
A42: 支出合计
A43: 9.年终结余
A44: 10.社会保险基金上解上级支出
A45: 11.社会保险基金转移支出
A46: 支出总计
A47: 注：本表为空表

Sheet 政府预算执行报表-29
A1: 附表3-29
A2: 2023年阳江镇镇本级社会保险基金收入决算表
D3: 单位：万元
A4: 收 入 项 目 | B4: 上年执行数 | D4: 本年执行数
A6: 1.企业职工基本养老保险基金收入
A7: 2.城乡居民基本养老保险基金收入
A8: 3.机关事业单位基本养老保险基金收入
A9: 4.职工基本医疗保险（含生育保险）基金收入
A10: 5.城乡居民基本医疗保险基金收入
A11: 6.工伤保险基金收入
A12: 7.失业保险基金收入
A13: 8.其他社会保险基金收入
A14: 新型农村合作医疗基金收入
A15: 城镇居民基本医疗保险基金收入
A16: 8.其他社会保险基金收入
A17: *级收入合计
A18: 9.上年结余收入
A19: 10.社会保险基金上解下拨收入
A20: （1）社会保险基金上级补助收入
A21: （2）社会保险基金下级上解收入
A22: 11.社会保险基金转移收入
A23: 其中：(1)企业职工基本养老保险转移收入
A24: (2)机关事业单位基本养老保险转移收入
A25: *级收入总计
A26: 注：本表为空表

Sheet 政府预算执行报表-30
A1: 附表3-30
A2: 2023年阳江镇镇本级社会保险基金支出决算表
C3: 金额单位：万元
A4: 支 出 项 目 | B4: 上年执行数 | C4: 本年执行数
A6: 1.企业职工基本养老保险基金支出
A7: （1）基本养老金
A8: （2）医疗补助金
A9: （3）丧葬抚恤补助
A10: （4）其他企业职工基本养老保险基金支出
A11: 2.城乡居民基本养老保险基金支出
A12: （1）基础养老金支出
A13: （2）个人账户养老金支出
A14: （3）丧葬抚恤补助支出
A15: （4）其他城乡居民基本养老保险基金支出
A16: 3.机关事业单位基本养老保险基金支出
A17: （1）基本养老金支出
A18: （2）其他机关事业单位基本养老保险基金支出
A19: 4.职工基本医疗保险（含生育保险）基金支出
A20: （1）职工基本医疗保险统筹基金
A21: （2）职工医疗保险个人账户基金
A22: （3）其他职工基本医疗保险基金支出
A23: 5.城乡居民基本医疗保险基金支出
A24: （1）城乡居民基本医疗保险基金医疗待遇支出
A25: （2）城乡居民大病保险支出
A26: （3）其他城乡居民基本医疗保险基金支出
A27: 6.工伤保险基金支出
A28: （1）工伤保险待遇
A29: （2）劳动能力鉴定支出
A30: （3）工伤预防费用支出
A31: （4）其他工伤保险基金支出
A32: 7.失业保险基金支出
A33: （1）失业保险金
A34: （2）医疗保险费
A35: （3）丧葬抚恤补助
A36: （4）职业培训和职业介绍补贴
A37: （5）技能提升补贴支出
A38: （6）稳定岗位补贴支出
A39: （7）其他费用支出
A40: （8）其他失业保险基金支出
A41: 8.其他社会保险基金支出
A42: 镇本级支出合计
A43: 9.年终结余
A44: 10.社会保险基金上解下拨支出
A45: (1)社会保险基金补助下级支出
A46: (2)社会保险基金上解上级支出
A47: 11.社会保险基金转移支出
A48: 其中：(1)企业职工基本养老保险转移支出
A49: (2)机关事业单位基本养老保险转移支出
A50: 镇本级支出总计
A51: 注：本表为空表

Sheet 政府预算执行报表-31
A1: 附表3-31
A2: 2023年阳江镇地方政府债务限额及余额情况表
F3: 单位：万元
A4: 地 区 | B4: **年债务限额 | E4: **年债务余额预计执行数 | H4: 2018年债务超限额情况
C5: 一般债务 | D5: 专项债务 | F5: 一般债务 | G5: 专项债务 | I5: 一般债务 | J5: 专项债务
A6: 公 式 | B6: A=B+C | C6: B | D6: C | E6: D=E+F | F6: E | G6: F | H6: G=H+I | I6: H | J6: I
H7: =B7-E7 -> 0.00 | I7: 0.00 | J7: 0.00
H8: 0.00 | I8: 0.00 | J8: 0.00
H10: =B10-E10 -> 0.00 | I10: 0.00 | J10: 0.00
H11: 0.00 | I11: 0.00 | J11: 0.00
H12: 0.00 | I12: 0.00 | J12: 0.00
H13: 0.00 | I13: 0.00 | J13: 0.00
A14: 注：本表反映上一年度本地区、本级及所属地区地方政府债务限额及余额预计执行数。 | H14: 0.00 | I14: 0.00 | J14: 0.00
A15: 注：本表为空表

Sheet 政府预算执行报表-32
A1: 附表3-32
A2: 2023年阳江镇政府一般债务余额情况表
C3: 单位：万元
A4: 项 目 | B4: 预算数 | C4: 执行数
A5: 一、**年末地方政府一般债务余额实际数
A6: 二、**年末地方政府一般债务余额限额
A7: 三、**年地方政府一般债务发行额
A8: 中央转贷地方的国际金融组织和外国政府贷款
A9: **年地方政府一般债券发行额
A10: 四、**年地方政府一般债务还本额
A11: 五、**年末地方政府一般债务余额预计执行数
A12: 六、**年地方财政赤字
A13: 七、**年末地方政府一般债务余额限额
A15: 备注：第2行、第12行、第13行的**年是指预算年度，如2020年；第五行的**年是指预算年度前两年，如2018年；第7行、第9行、第10行、第11行的**年是指预算年度前一年，如2019年。
A16: 注：本表为空表

Sheet 政府预算执行报表-33
A1: 附表3-33
A2: 2023年阳江镇地方政府专项债务余额情况表
C3: 单位：万元
A4: 项 目 | B4: 预算数 | C4: 执行数
A5: 一、**年末地方政府专项债务余额实际数
A6: 二、**年末地方政府专项债务余额限额
A7: 三、**年地方政府专项债务发行额
A8: 四、**年地方政府专项债务还本额
A9: 五、**年末地方政府专项债务余额预计执行数
A10: 六、**年地方政府专项债务新增限额
A11: 七、**年末地方政府专项债务余额限额
A13: 备注：第2行、第10行、第11行的**年指预算年度，如2020年；第5行的**年指预算年度前两年，如2018年；第6-9行的**年指预算年度前一年，如2019年。
A14: 注：本表为空表

Sheet 政府预算执行报表-34
A1: 附表3-34
A2: 阳江镇地方政府债券发行及还本付息情况表
D3: 单位：万元
A4: 项目 | B4: 公式 | C4: 本地区 | D4: 本级
A5: 一、**年发行预计执行数 | B5: A=B+D
A6: （一）一般债券 | B6: B
A7: 其中：再融资债券 | B7: C
A8: （二）专项债券 | B8: D
A9: 其中：再融资债券 | B9: E
A10: 二、**年还本支出预计执行数 | B10: F=G+H
A11: （一）一般债券 | B11: G
A12: （二）专项债券 | B12: H
A13: 三、**年付息支出预计执行数 | B13: I=J+K
A14: （一）一般债券 | B14: J
A15: （二）专项债券 | B15: K
A16: 四、**年还本支出预算数 | B16: L=M+O
A17: （一）一般债券 | B17: M
A18: 其中：再融资债券
A19: 财政预算安排 | B19: N
A20: （二）专项债券 | B20: O
A21: 其中：再融资债券 | C21: 0.00 | D21: 0.00
A22: 财政预算安排 | B22: P | C22: 0.00 | D22: 0.00
A23: 五、**年付息支出预算数 | B23: Q=R+S
A24: （一）一般债券 | B24: R
A25: （二）专项债券 | B25: S
A26: 注：本表反映本地区上一年度地方政府债券（含再融资债券）发行及还本付息支出预计执行数、本年度地方政府债券还本付息支出预算数等。
A27: 注：本表为空表

Sheet 政府预算执行报表-35
A1: 附表3-35
A2: 2023年阳江镇地方政府债务限额提前下达情况表
E3: 单位：万元
A4: 项目 | B4: 公式 | C4: 本地区 | D4: 本级 | E4: 下级
A5: 一、**年地方政府债务限额 | B5: A=B+C
A6: 其中：一般债券限额 | B6: B
A7: 专项债务限额 | B7: C
A8: 二、提前下达的**年新增地方政府债务限额 | B8: D=E+F
A9: 其中：一般债券限额 | B9: E
A10: 专项债务限额 | B10: F
A11: 注：本表反映本地区及本级预算中列示提前下达的新增地方政府债务限额情况。
A12: 注：本表为空表

Sheet 政府预算执行报表-36
A1: 附表3-36
A2: 2023年阳江镇地方年初新增地方政府债券资金安排表
F3: 单位：万元
A4: 序号 | B4: 项目名称 | C4: 项目类型 | D4: 项目主管部门 | E4: 债券性质 | F4: 债券规模
A6: 注：本表反映本级当年提前下达的新增地方政府债券资金使用安排。
A7: 注：本表为空表
